{"text_format":"3","workbook":"xlsx","n_sheets":4,"sheets":["Licitűrlap","Diagramadatok","Költségek lebontása","Ajánlat költségösszegzése"],"not_rendered":{"charts":1,"images":2,"defined_names":11},"read":"whole","date_system":"1900"}

{"sheet":"Licitűrlap","index":0,"n_rows":21,"n_cols":6,"rows_kept":21,"merged":[[0,1,0,4],[1,1,1,2],[7,1,8,1],[7,2,8,2],[10,1,10,5],[12,1,12,5],[14,1,14,5],[15,1,15,2],[15,4,15,5],[16,1,16,2],[16,4,16,5],[18,1,18,5],[19,1,19,2],[19,4,19,5],[20,1,20,2],[20,4,20,5]]}
[null,"Építőipari ajánlattételi űrlap"]
[null,"Tulajdonos adatai",null,null,"Alvállalkozó adatai"]
[null,"Név","Ebben a cellában adhatja meg a tulajdonos nevét.",null,"Cég","Ebben a cellában adhatja meg az alvállalkozó cégnevét."]
[null,"Cím","Ebben a cellában adhatja meg a tulajdonos címét.",null,"Név","Ebben a cellában adhatja meg az alvállalkozó nevét."]
[null,"Település, irányítószám","Ebben a cellában adhatja meg a tulajdonos címének település és irányítószám részét.",null,"Cím","Ebben a cellában adhatja meg az alvállalkozó címét."]
[null,"Telefonszám","Ebben a cellában adhatja meg a tulajdonos telefonszámát.",null,"Település, irányítószám","Ebben a cellában adhatja meg az alvállalkozó címének település és irányítószám részét."]
[null,"E-mail-cím","Ebben a cellában adhatja meg a tulajdonos e-mail-címét.",null,"Telefonszám","Ebben a cellában adhatja meg az alvállalkozó telefonszámát."]
[null,"Projekt neve","Ebben a cellában adhatja meg a projekt nevét.",null,"E-mail-cím","Ebben a cellában adhatja meg az alvállalkozó e-mail-címét. "]
[{"$nulls":4},"Befejezési dátum","Ebben a cellában adhatja meg a befejezési dátumot."]
[null,"Munkaleírás"]
[null,"Ide kerül a projekt munkaleírása. Írja be az összes kívánt specifikációt. \n\nMintaszöveg: Ez egy nagy lépcső építését szimuláló projekt lesz. A szerkezet összeállításához csak 5x10 és 5x20 cm-es fa gerendákat, valamint gerendatartó konzolokat használunk. A lépcsőfokok az 5x10 cm-es anyagból lesznek kivágva. Legalább 5 cm-es csavarokat használunk majd.  A felhasznált szögek nem lesznek kisebbek 7,5 cm-nél. A tervezett teherbírás lépcsőfokonként legalább 225 kg. A lépcsőfokok párhuzamosak lesznek a ház alapszintjével. Az első lépcsőfokot alkotó felhágót rögzítjük a házhoz. Az alvállalkozó gondoskodik a takarításról."]
[null,"Nem képezi az ajánlat részét"]
[null,"Ide kerülnek a projekt azon elemei, amelyek nem képezik az ajánlat részét. Írjon be mindent, ami nem szerepel ebben az ajánlatban. \n\nMintaszöveg: Nem szerelünk fel korlátot. Az aljzat előkészítése a tulajdonos feladata. A lépcső festése a tulajdonosra hárul."]
[null,"Cégünk ajánlata"]
[null,"Ide kerül a céges ajánlat. Írja be az ajánlat áttekintését, beleértve azt is, hogy ki teszi az ajánlatot a munkára, továbbá a várható befejezési dátumot és az ajánlat összegét.\n\nMintaszöveg: Mi – Cégnév – ajánlatot teszünk a fenti munkaleírásban részletezettek elvégzésére, Befejezési dátum határidővel, Teljes összeg vállalási árért."]
[]
[null,"Benyújtotta (cég képviselője)",null,null,"Dátum"]
[null,"Tulajdonos általi elfogadás"]
[null,"Ide kerül a tulajdonos általi elfogadás. Írja be a tulajdonos nevét egy megerősítő nyilatkozatba, amely tartalmazza a céges ajánlatban szereplő befejezési dátumot és teljes összeget. \n\nMintaszöveg: Én – Tulajdonos neve – elfogadom a fenti munkaleírásban részletezett ajánlatot, az ajánlott Befejezési dátum határidővel, Teljes összeg vállalási árért."]
[]
[null,"Benyújtotta (ház tulajdonosa vagy meghatalmazott képviselője)",null,null,"Dátum"]

{"sheet":"Diagramadatok","index":1,"n_rows":7,"n_cols":3,"rows_kept":7,"hidden":true}
[]
[null,null,"Összeg"]
[null,{"$f":"INDEX(Licitelemek[#Data],MATCH(1,Licitelemek[Költségek rangsorolva],0),2)","v":"Munkadíj"},{"$f":"INDEX(Licitelemek[#Data],MATCH(1,Licitelemek[Költségek rangsorolva],0),4)","v":200}]
[null,{"$f":"INDEX(Licitelemek[#Data],MATCH(2,Licitelemek[Költségek rangsorolva],0),2)","v":"5x10x305 cm-es fa gerenda"},{"$f":"INDEX(Licitelemek[#Data],MATCH(2,Licitelemek[Költségek rangsorolva],0),4)","v":99.39999999999999}]
[null,{"$f":"INDEX(Licitelemek[#Data],MATCH(3,Licitelemek[Költségek rangsorolva],0),2)","v":"Gerendatartó konzolok"},{"$f":"INDEX(Licitelemek[#Data],MATCH(3,Licitelemek[Költségek rangsorolva],0),4)","v":74.7}]
[null,{"$f":"INDEX(Licitelemek[#Data],MATCH(4,Licitelemek[Költségek rangsorolva],0),2)","v":"5x20x305 cm-es fa gerenda"},{"$f":"INDEX(Licitelemek[#Data],MATCH(4,Licitelemek[Költségek rangsorolva],0),4)","v":33.75}]
[null,{"$f":"INDEX(Licitelemek[#Data],MATCH(5,Licitelemek[Költségek rangsorolva],0),2)","v":"Bőrkesztyű, pár"},{"$f":"INDEX(Licitelemek[#Data],MATCH(5,Licitelemek[Költségek rangsorolva],0),4)","v":15.5}]

{"sheet":"Költségek lebontása","index":2,"n_rows":14,"n_cols":6,"rows_kept":14,"merged":[[0,1,0,4],[1,1,1,4]]}
[null,"Költségrészletezés",{"$nulls":3}," "]
[null,"Anyagok és költségek listája"]
[null,"Menny.","Leírás","Költség","Összeg","Költségek rangsorolva"]
[null,5,"5x20x305 cm-es fa gerenda",{"v":6.75,"d":"6.75 Ft"},{"$f":"IFERROR(Licitelemek[[#This Row],[Költség]]*Licitelemek[[#This Row],[Menny.]], \"\")","v":{"v":33.75,"d":"33.75 Ft"}},{"$f":"_xlfn.RANK.EQ(Licitelemek[[#This Row],[Összeg]],Licitelemek[Összeg])","v":4}]
[null,20,"5x10x305 cm-es fa gerenda",{"v":4.97,"d":"4.97 Ft"},{"$f":"IFERROR(Licitelemek[[#This Row],[Költség]]*Licitelemek[[#This Row],[Menny.]], \"\")","v":{"v":99.39999999999999,"d":"99.40 Ft"}},{"$f":"_xlfn.RANK.EQ(Licitelemek[[#This Row],[Összeg]],Licitelemek[Összeg])","v":2}]
[null,30,"Gerendatartó konzolok",{"v":2.49,"d":"2.49 Ft"},{"$f":"IFERROR(Licitelemek[[#This Row],[Költség]]*Licitelemek[[#This Row],[Menny.]], \"\")","v":{"v":74.7,"d":"74.70 Ft"}},{"$f":"_xlfn.RANK.EQ(Licitelemek[[#This Row],[Összeg]],Licitelemek[Összeg])","v":3}]
[null,2,"Csavar, 5 cm-es, doboz",{"v":6.67,"d":"6.67 Ft"},{"$f":"IFERROR(Licitelemek[[#This Row],[Költség]]*Licitelemek[[#This Row],[Menny.]], \"\")","v":{"v":13.34,"d":"13.34 Ft"}},{"$f":"_xlfn.RANK.EQ(Licitelemek[[#This Row],[Összeg]],Licitelemek[Összeg])","v":6}]
[null,2,"Szög, 7,5 cm-es, doboz",{"v":3.25,"d":"3.25 Ft"},{"$f":"IFERROR(Licitelemek[[#This Row],[Költség]]*Licitelemek[[#This Row],[Menny.]], \"\")","v":{"v":6.5,"d":"6.50 Ft"}},{"$f":"_xlfn.RANK.EQ(Licitelemek[[#This Row],[Összeg]],Licitelemek[Összeg])","v":7}]
[null,2,"Bőrkesztyű, pár",{"v":7.75,"d":"7.75 Ft"},{"$f":"IFERROR(Licitelemek[[#This Row],[Költség]]*Licitelemek[[#This Row],[Menny.]], \"\")","v":{"v":15.5,"d":"15.50 Ft"}},{"$f":"_xlfn.RANK.EQ(Licitelemek[[#This Row],[Összeg]],Licitelemek[Összeg])","v":5}]
[null,2,"Munkadíj",{"v":100,"d":"100.00 Ft"},{"$f":"IFERROR(Licitelemek[[#This Row],[Költség]]*Licitelemek[[#This Row],[Menny.]], \"\")","v":{"v":200,"d":"200.00 Ft"}},{"$f":"_xlfn.RANK.EQ(Licitelemek[[#This Row],[Összeg]],Licitelemek[Összeg])","v":1}]
[4,null,null,"Részösszeg",{"$f":"SUBTOTAL(109,Licitelemek[Összeg])","v":{"v":443.18999999999994,"d":"443.19 Ft"}}]
[5,null,null,"Áfakulcs",{"v":0.075,"d":"7.50%"}]
[{"$nulls":3},"Adó",{"$f":"IFERROR(Áfakulcs*Licitelemek[[#Totals],[Összeg]], \"\")","v":{"v":33.23924999999999,"d":"33.24 Ft"}}]
[{"$nulls":3},"Végösszeg",{"$f":"IFERROR(Adó+Licitelemek[[#Totals],[Összeg]], \"\")","v":{"v":476.4292499999999,"d":"476.43 Ft"}}]

{"sheet":"Ajánlat költségösszegzése","index":3,"n_rows":3,"n_cols":4,"rows_kept":3}
[null,"Ajánlat költségösszegzése"]
[null,"Anyagok és költségek részletes bontása",null,"Megjegyzések"]
[null,"A legmagasabb 5 anyagköltséget ábrázoló kördiagram. Az adatok a Költségrészletezés munkalap Ajánlat elemei táblázatán alapulnak.",null,"Ebbe a cellába írhat be megjegyzéseket."]